bitfinex-derivatives/quotes_SOLF0:USTF0_20260311
["timestamp","ask_amount","ask_price","bid_price","bid_amount"]
[1773268187664,2.4572742,87.16,87.106,12.574033]
[1773268188067,24.745,87.162,87.106,12.574033]
[1773268188263,24.745,87.162,87.111,12.574033]
[1773268188772,10.325,87.162,87.111,12.574033]
[1773268188961,10.324,87.167,87.112,10.33]
[1773268189164,10.324,87.167,87.113,12.60943674]
[1773268192570,2.4572742,87.17,87.118,12.61115347]
[1773268193376,2.4572742,87.17,87.037,294.0]
[1773268193377,2.4572742,87.14,87.101,12.61074202]
[1773268193767,10.327,87.139,87.101,12.61074202]
[1773268195075,2.4572742,87.14,87.101,12.61074202]
[1773268196477,10.326,87.149,87.101,12.61074202]
[1773268198170,2.4572742,87.15,87.103,12.65814199]
[1773268199272,2.4572742,87.16,87.103,12.65814199]
[1773268199469,2.4572742,87.16,87.105,12.63102518]
[1773268199875,2.4572742,87.17,87.116,12.63102518]
[1773268200178,2.4572742,87.18,87.121,12.63102518]
[1773268200577,10.323,87.176,87.125,12.63755333]
[1773268201378,14.42,87.19,87.068,12.63720134]
[1773268201379,8.44771889,87.189,87.068,12.63720134]
[1773268201576,2.4572742,87.14,87.07,2.4572742]
[1773268201778,2.4572742,87.15,87.091,11.40856424]
[1773268201974,8.44771889,87.187,87.092,11.40856424]
[1773268202174,2.4572742,87.17,87.111,11.40856424]
[1773268202377,2.4572742,87.17,87.062,20.99175964]
[1773268202378,2.4572742,87.18,87.121,11.36997164]
[1773268202576,2.4572742,87.18,87.127,11.36997164]
[1773268202577,10.323,87.178,87.127,11.36997164]
[1773268202782,10.323,87.178,87.131,11.36997164]
[1773268203284,2.4572742,87.2,87.141,11.36953272]
[1773268203880,10.322,87.187,87.141,11.36953272]
[1773268208689,2.4572742,87.21,87.151,11.40845246]
[1773268208880,2.4572742,87.21,87.15,2.4572742]
[1773268208881,14.42,87.216,87.161,11.40845246]
[1773268209579,10.319,87.213,87.162,11.40807566]
[1773268210487,2.4572742,87.23,87.171,11.39017913]
[1773268210988,2.4572742,87.2,87.158,11.39017913]
[1773268212386,10.32,87.197,87.158,11.39017913]
[1773268212783,2.4572742,87.19,87.131,11.38978553]
[1773268213281,10.322,87.189,87.135,11.38978553]
[1773268213487,2.4572742,87.18,87.135,11.38978553]
[1773268214891,10.323,87.178,87.135,11.38978553]
[1773268217885,10.322,87.186,87.136,11.41835614]
[1773268218688,10.323,87.179,87.136,11.41835614]
[1773268219487,14.42,87.23,87.152,11.47242158]
[1773268219792,2.4572742,87.22,87.161,11.47242158]
[1773268219993,10.32,87.203,87.161,11.47242158]
[1773268220194,2.4572742,87.2,87.141,11.47242158]
[1773268221394,10.321,87.191,87.145,11.4859323]
[1773268222295,10.321,87.191,87.146,10.326]
[1773268222599,10.321,87.191,87.147,11.48681981]
[1773268225895,10.32,87.199,87.154,11.49993915]
[1773268226803,10.32,87.199,87.157,11.50756889]
[1773268227005,10.322,87.186,87.157,11.50756889]
[1773268228208,10.321,87.194,87.157,11.50756889]
[1773268229109,10.32,87.203,87.159,11.51419033]
[1773268229903,2.4572742,87.2,87.159,11.51419033]
[1773268230103,2.4572742,87.18,87.131,11.51395763]
[1773268230509,12.7812742,87.17,87.131,11.51395763]
[1773268231003,2.4572742,87.16,87.111,11.51955348]
[1773268231711,2.4572742,87.16,87.119,11.51933041]
[1773268232014,10.324,87.165,87.119,11.51933041]
[1773268232807,10.323,87.172,87.123,11.55461505]
[1773268233611,10.324,87.169,87.123,11.55461505]
[1773268234210,10.323,87.177,87.126,11.55441614]
[1773268234411,8.49125856,87.195,87.131,11.56490672]
[1773268234609,2.4572742,87.18,87.131,11.56490672]
[1773268235406,2.4572742,87.18,87.132,11.56471851]
[1773268236414,2.4572742,87.18,87.137,10.327]
[1773268237003,2.4572742,87.18,87.137,21.87966096]
[1773268237408,10.323,87.179,87.137,21.87966096]
[1773268238306,10.322,87.186,87.14,11.6032697]
[1773268238512,2.4572742,87.2,87.14,14.0605439]
[1773268238912,10.321,87.189,87.148,11.6032697]
[1773268239311,2.4572742,87.19,87.148,11.6032697]
[1773268239612,2.45597875,87.19,87.148,11.6032697]
[1773268240415,10.321,87.189,87.148,11.6032697]
[1773268244213,10.321,87.189,87.149,10.326]
[1773268244418,10.321,87.189,87.148,11.6032697]
[1773268244610,10.321,87.189,87.13,2.45597875]
[1773268244611,10.321,87.189,87.149,11.64002578]
[1773268245121,10.321,87.189,87.13,2.45597875]
[1773268245317,3.38672467,87.169,87.11,2.45597875]
[1773268245717,2.45597875,87.17,87.12,2.45597875]
[1773268246616,2.45597875,87.17,87.11,2.45597875]
[1773268246920,2.45597875,87.15,87.093,20.99175964]
[1773268247116,2.45597875,87.15,87.094,6.83083688]
[1773268247720,10.326,87.149,87.104,6.83083688]
[1773268251424,10.326,87.149,87.107,7.51596474]
[1773268252522,10.327,87.14,87.107,7.51596474]
[1773268253927,12.78297875,87.14,87.107,7.51596474]
[1773268254123,2.45597875,87.13,87.093,7.51596474]
[1773268254324,2.45597875,87.12,87.071,7.51596474]
[1773268255324,10.33,87.119,87.071,7.51596474]
[1773268257422,2.45597875,87.11,87.071,7.51596474]
[1773268259221,2.45597875,87.12,87.074,7.51596474]
[1773268260324,10.33,87.118,87.074,7.51596474]
[1773268262424,2.45597875,87.12,87.074,7.51596474]
[1773268262928,2.45597875,87.12,87.06,2.45597875]
[1773268262929,2.45597875,87.12,87.08,17.84996474]
[1773268263129,2.45597875,87.12,87.081,7.51596474]
[1773268264728,6.16734209,87.13,87.083,7.51596474]
[1773268264925,160.462,87.244,87.045,20.677]
[1773268264926,3.84777929,87.144,87.091,7.51596474]
[1773268265622,10.327,87.139,87.094,7.51596474]
[1773268266426,3.84569073,87.129,87.083,7.51596474]
[1773268268126,3.84569073,87.129,87.086,10.334]
[1773268268422,3.84569073,87.129,87.087,7.51596474]
[1773268269423,3.84569073,87.129,87.088,10.333]
[1773268270032,3.84569073,87.129,87.088,17.84896474]
[1773268270331,10.329,87.127,87.088,7.51596474]
[1773268270832,3.84569073,87.129,87.088,7.51596474]
[1773268271034,10.328,87.135,87.088,7.51596474]
[1773268271631,3.91726261,87.149,87.101,7.51596474]
[1773268271933,3.91726261,87.129,87.081,7.51596474]
[1773268272527,10.329,87.128,87.09,10.333]
[1773268274334,2.45597875,87.14,87.094,7.51596474]
[1773268274528,3.9117261,87.141,87.094,7.51596474]
[1773268275131,12.78197875,87.15,87.106,7.51596474]
[1773268275438,10.326,87.15,87.106,7.51596474]
[1773268275830,10.326,87.15,87.107,17.84696474]
[1773268276032,3.86099177,87.156,87.107,7.51596474]
[1773268277329,10.326,87.148,87.107,7.51596474]
[1773268278533,10.327,87.142,87.107,7.51596474]
[1773268278733,14.28080653,87.142,87.098,10.332]
[1773268279029,3.95380653,87.142,87.098,10.332]
[1773268279632,10.328,87.136,87.094,7.51596474]
[1773268279834,14.29601102,87.136,87.094,7.51596474]
[1773268280533,3.996433,87.132,87.094,7.51596474]
[1773268281334,14.324433,87.132,87.094,7.51596474]
[1773268285740,4.26986143,87.161,87.101,7.53296815]
[1773268285937,4.26986143,87.149,87.101,7.53296815]
[1773268287334,10.328,87.137,87.101,7.53296815]
[1773268293043,14.66719302,87.137,87.101,7.53296815]
[1773268293544,10.328,87.132,87.101,7.53296815]
[1773268294040,8.50363432,87.172,87.081,7.53296815]
[1773268294041,10.329,87.124,87.081,7.53296815]
[1773268294242,14.62922883,87.124,87.081,7.53296815]
[1773268295344,2.45597875,87.13,87.083,7.53296815]
[1773268295543,10.328,87.131,87.083,7.53296815]
[1773268296440,10.328,87.131,87.087,7.53296815]
[1773268297441,10.328,87.131,87.09,7.53296815]
[1773268299139,10.328,87.131,87.094,10.333]
[1773268299339,10.328,87.131,87.094,17.86596815]
[1773268299545,10.328,87.131,87.094,7.53296815]
[1773268302641,4.38622589,87.123,87.088,7.67918754]
[1773268302845,4.38622589,87.123,87.08,10.334]
[1773268303246,2.45906919,87.11,87.067,20.99175964]
[1773268303440,4.39464195,87.109,87.064,7.67918754]
[1773268304449,10.332,87.104,87.064,7.67918754]
[1773268304649,4.40296372,87.103,87.064,7.67918754]
[1773268304947,4.40296372,87.099,87.049,7.67918754]
[1773268305349,4.15308787,87.089,87.044,281.3703353]
[1773268305650,4.15308787,87.089,87.035,7.67918754]
[1773268306048,10.333,87.088,87.042,7.67918754]
[1773268306852,10.333,87.088,87.045,7.67918754]
[1773268308152,10.333,87.096,87.047,7.67918754]
[1773268308747,4.20664807,87.099,87.056,10.337]
[1773268308942,4.20664807,87.099,87.056,18.01618754]
[1773268309548,10.332,87.098,87.056,18.01618754]
[1773268309746,10.332,87.098,87.056,7.67918754]
[1773268310551,14.57431132,87.098,87.056,7.67918754]
[1773268312557,10.333,87.095,87.056,7.67918754]
[1773268312755,2.45906919,87.09,87.056,7.67918754]
[1773268316268,4.33389993,87.089,87.031,7.71454604]
[1773268317265,4.33389993,87.089,87.03,2.45906919]
[1773268317266,10.334,87.087,87.044,7.71454604]
[1773268319371,10.334,87.087,87.046,7.71454604]
[1773268320372,2.45906919,87.11,87.054,7.71454604]
[1773268320569,4.37928435,87.109,87.054,7.71454604]
[1773268321170,10.332,87.096,87.057,7.71454604]
[1773268321863,2.45906919,87.1,87.042,7.71454604]
[1773268321864,10.333,87.088,87.042,7.71454604]
[1773268322069,2.45906919,87.08,87.042,7.71454604]
[1773268323571,12.79306919,87.08,87.042,7.71454604]
[1773268323968,2.45906919,87.11,87.051,7.71454604]
[1773268324173,4.40054974,87.119,87.051,7.71454604]
[1773268324668,4.40691641,87.129,87.081,7.71454604]
[1773268324873,2.45906919,87.14,87.081,7.71454604]
[1773268326366,10.328,87.135,87.093,7.71454604]
[1773268328475,4.40691641,87.142,87.093,7.71454604]
[1773268328873,4.29571739,87.139,87.093,7.71454604]
[1773268330076,4.29571739,87.139,87.049,20.99175964]
[1773268330077,14.63964052,87.115,87.071,7.71454604]
[1773268331080,14.44,87.138,87.061,7.71454604]
[1773268331081,4.31560154,87.119,87.061,7.71454604]
[1773268331576,4.31560154,87.119,87.021,20.683]
[1773268331577,4.31560154,87.119,87.071,7.71454604]
[1773268332479,4.31560154,87.119,87.079,7.71454604]
[1773268333776,10.33,87.118,87.079,7.71454604]
[1773268334477,4.31560154,87.119,87.079,7.71454604]
[1773268336382,10.331,87.112,87.079,7.71454604]
[1773268336682,2.45906919,87.13,87.079,7.71454604]
[1773268337479,4.38526909,87.129,87.079,7.71454604]
[1773268338482,10.331,87.111,87.079,7.71454604]
[1773268338683,4.38526909,87.129,87.079,7.71454604]
[1773268340481,10.33,87.118,87.079,7.71454604]
[1773268340981,10.33,87.118,87.06,2.45906919]
[1773268340982,4.38526909,87.129,87.08,7.2748064]
[1773268342076,10.33,87.12,87.08,7.2748064]
[1773268342985,4.38526909,87.129,87.08,7.2748064]
[1773268343383,2.45906919,87.12,87.08,7.2748064]
[1773268344585,10.33,87.114,87.08,7.2748064]
[1773268344787,2.45906919,87.12,87.08,7.2748064]
[1773268344986,8.69144521,87.137,87.083,7.2748064]
[1773268345186,2.45906919,87.14,87.083,7.2748064]
[1773268345387,6.90976566,87.14,87.083,7.2748064]
[1773268346082,4.45069647,87.139,87.083,7.2748064]
[1773268346488,10.329,87.128,87.087,7.2748064]
[1773268346694,2.45906919,87.14,87.087,7.2748064]
[1773268348480,10.328,87.135,87.092,7.2748064]
[1773268349086,10.329,87.129,87.092,7.2748064]
[1773268349388,2.45906919,87.14,87.096,7.2748064]
[1773268350486,10.328,87.133,87.096,7.2748064]
[1773268351179,2.45906919,87.14,87.096,7.2748064]
[1773268351385,10.327,87.141,87.096,7.2748064]
[1773268351788,4.73514747,87.149,87.096,7.2748064]
[1773268352088,10.328,87.135,87.096,7.2748064]
[1773268353491,10.328,87.135,87.098,7.2748064]
[1773268353789,4.76083612,87.159,87.101,7.2748064]
[1773268353988,4.76083612,87.158,87.101,7.2748064]
[1773268354486,2.45906919,87.17,87.114,7.2748064]
[1773268354687,4.76537082,87.176,87.114,7.2748064]
[1773268355185,2.45906919,87.17,87.114,7.2748064]
[1773268356584,2.45906919,87.17,87.122,7.2748064]
[1773268356790,2.45906919,87.16,87.122,7.2748064]
[1773268358186,7.2409858,87.17,87.122,7.2748064]
[1773268358385,2.45906919,87.18,87.122,7.2748064]
[1773268358786,5.59973023,87.182,87.131,7.2748064]
[1773268360384,10.322,87.181,87.137,7.70820871]
[1773268361486,5.59973023,87.182,87.13,2.45906919]
[1773268361487,5.59973023,87.182,87.14,7.70820871]
[1773268361691,10.321,87.189,87.14,7.70820871]
[1773268361692,10.321,87.189,87.141,7.70820871]
[1773268362489,10.321,87.189,87.146,7.70820871]
[1773268362885,2.45906919,87.17,87.13,7.70820871]
[1773268363087,2.45906919,87.15,87.091,7.70820871]
[1773268363785,2.45852181,87.15,87.091,7.70820871]
[1773268364290,10.326,87.149,87.1,10.332]
[1773268364491,5.61266678,87.148,87.101,7.70820871]
[1773268364687,2.45852181,87.14,87.101,7.70820871]
[1773268366590,10.328,87.135,87.088,10.333]
[1773268366791,2.45852181,87.11,87.067,7.70820871]
[1773268366991,5.2280764,87.163,87.071,7.70820871]
[1773268367187,2.45852181,87.13,87.071,7.70820871]
[1773268367394,2.45852181,87.13,87.084,7.70820871]
[1773268368390,10.329,87.129,87.084,7.70820871]
[1773268369694,2.45852181,87.13,87.086,7.70820871]
[1773268371397,2.45852181,87.13,87.089,7.78128856]
[1773268373298,10.329,87.129,87.089,7.78128856]
[1773268374194,5.11808116,87.154,87.089,7.78128856]
[1773268374402,5.11808116,87.154,87.091,7.78128856]
[1773268374894,2.45852181,87.16,87.049,34.44]
[1773268374895,2.45852181,87.13,87.077,7.78128856]
[1773268376401,10.329,87.129,87.085,10.334]
[1773268376596,5.12164689,87.135,87.086,7.78128856]
[1773268377003,5.12164689,87.135,87.098,18.11328856]
[1773268377303,10.327,87.146,87.099,7.78128856]
[1773268377494,5.12890554,87.148,87.099,7.78128856]
[1773268378505,10.327,87.139,87.099,7.78128856]
[1773268378702,5.12890554,87.148,87.099,7.78128856]
[1773268379006,2.45852181,87.15,87.068,20.99175964]
[1773268379007,7.54135626,87.16,87.109,7.78128856]
[1773268379506,5.08283445,87.16,87.111,7.78128856]
[1773268380106,10.325,87.159,87.115,7.78128856]
[1773268382302,5.08283445,87.16,87.118,7.78128856]
[1773268383606,5.08283445,87.16,87.121,7.78128856]
[1773268386007,7.54135626,87.16,87.121,7.78128856]
[1773268387911,17.86635626,87.16,87.121,7.78128856]
[1773268391807,14.44,87.186,87.125,7.78128856]
[1773268391808,10.324,87.167,87.125,7.78128856]
[1773268392112,5.1760364,87.166,87.125,7.78128856]
[1773268393407,5.18258182,87.159,87.09,20.99175964]
[1773268393610,7.64110363,87.14,87.091,7.78128856]
[1773268393815,2.45852181,87.13,87.091,7.78128856]
[1773268395110,5.18258182,87.139,87.091,7.78128856]
[1773268395308,10.328,87.133,87.093,10.333]
[1773268397412,10.328,87.133,87.093,18.11428856]
[1773268397910,10.328,87.133,87.096,10.332]
[1773268398110,10.328,87.133,87.097,7.78128856]
[1773268403933,5.18258182,87.139,87.099,7.94505136]
[1773268404133,5.18258182,87.139,87.08,2.45852181]
[1773268404134,5.18258182,87.139,87.081,7.94505136]
[1773268404334,5.34048969,87.129,87.081,7.94505136]
[1773268405430,5.34048969,87.129,87.091,7.94505136]
[1773268406137,10.328,87.138,87.093,7.94505136]
[1773268407439,10.328,87.138,87.098,7.94505136]
[1773268407633,8.83841395,87.149,87.101,7.94505136]
[1773268407840,5.42324881,87.159,87.101,7.94505136]
[1773268408040,8.83833516,87.158,87.101,7.94505136]
[1773268408340,8.83833516,87.157,87.117,7.94505136]
[1773268408540,5.42324881,87.159,87.117,7.94505136]
[1773268408745,5.42324881,87.159,87.073,28.5332969]
[1773268408746,10.328,87.137,87.101,7.94505136]
[1773268409041,10.328,87.137,87.063,49.2062969]
[1773268409042,5.42571575,87.129,87.081,7.94505136]
[1773268409235,5.42571575,87.119,87.081,7.94505136]
[1773268410341,15.75571575,87.119,87.081,7.94505136]
[1773268411340,5.42571575,87.119,87.081,7.94505136]
[1773268416141,5.42571575,87.119,87.076,10.335]
[1773268416744,5.42571575,87.119,87.076,18.28005136]
[1773268417445,10.33,87.118,87.076,18.28005136]
[1773268417743,10.33,87.118,87.077,7.94505136]
[1773268417938,5.42571575,87.119,87.079,10.334]
[1773268418144,5.42571575,87.119,87.08,7.94505136]
[1773268419344,5.42571575,87.119,87.081,10.334]
[1773268420342,5.38833724,87.109,87.068,7.94505136]
[1773268421444,10.331,87.105,87.068,7.94505136]
[1773268422042,5.37835529,87.099,87.055,7.68966687]
[1773268422443,2.45852181,87.09,87.055,7.68966687]
[1773268423540,2.46158971,87.09,87.055,7.68966687]
[1773268425345,10.333,87.095,87.055,7.68966687]
[1773268425551,7.51070321,87.11,87.057,7.68966687]
[1773268426049,5.0491135,87.109,87.057,7.68966687]
[1773268426445,10.332,87.102,87.06,7.68966687]
[1773268427345,5.05100025,87.089,87.047,7.68966687]
[1773268428348,5.05100025,87.089,87.05,7.68966687]
[1773268429051,10.331,87.105,87.053,7.68966687]
[1773268430254,10.331,87.105,87.058,7.38974377]
[1773268431357,10.331,87.105,87.062,7.38974377]
[1773268431554,10.33,87.118,87.07,2.46158971]
[1773268431745,10.33,87.118,87.071,7.38974377]
[1773268431950,5.0838022,87.117,87.071,7.38974377]
[1773268432346,5.0838022,87.117,87.073,7.38974377]
[1773268433355,5.0838022,87.117,87.077,10.335]
[1773268435059,5.0838022,87.117,87.078,7.38974377]
[1773268438164,10.33,87.115,87.078,7.38974377]
[1773268438664,4.95517253,87.114,87.078,7.38974377]
[1773268441859,5.02076137,87.109,87.067,7.38974377]
[1773268442770,12.79258971,87.11,87.055,7.38974377]
[1773268442771,5.02424339,87.107,87.055,7.38974377]
[1773268442958,5.02424339,87.099,87.055,7.38974377]
[1773268443659,2.46158971,87.09,87.041,7.38974377]
[1773268443863,5.02574623,87.089,87.041,7.38974377]
[1773268445365,5.02574623,87.089,87.05,7.38974377]
[1773268446367,5.02574623,87.089,87.052,10.338]
[1773268446865,10.333,87.088,87.05,7.38974377]
[1773268451771,5.0941304,87.087,87.046,7.38974377]
[1773268452970,5.05238693,87.084,87.046,7.38974377]
[1773268453169,2.46158971,87.07,87.029,7.38974377]
[1773268453367,5.05372832,87.079,87.031,7.38974377]
[1773268453572,10.333,87.088,87.031,7.38974377]
[1773268453873,5.05380597,87.103,87.054,7.38974377]
[1773268454272,5.05380597,87.103,87.067,7.38974377]
[1773268454476,10.33,87.114,87.067,7.38974377]
[1773268455578,10.33,87.114,87.07,7.38974377]
[1773268456174,10.329,87.122,87.076,7.38974377]
[1773268456380,5.04659622,87.121,87.076,7.38974377]
[1773268456680,4.9559338,87.133,87.076,7.38974377]
[1773268457588,4.9559338,87.133,87.086,7.38974377]
[1773268457876,4.95726791,87.129,87.073,7.38974377]
[1773268458080,4.95726791,87.119,87.073,7.38974377]
[1773268459377,15.31139056,87.117,87.073,7.38974377]
[1773268459781,4.98139056,87.117,87.073,7.38974377]
[1773268460181,10.329,87.125,87.075,7.86980303]
[1773268460486,4.97003267,87.125,87.075,7.86980303]
[1773268461384,4.97003267,87.125,87.02,20.683]
[1773268461385,2.46158971,87.09,87.046,7.86980303]
[1773268461782,2.46158971,87.1,87.046,7.86980303]
[1773268461975,14.44,87.108,87.057,7.86980303]
[1773268462177,2.46158971,87.1,87.057,7.86980303]
[1773268462478,2.46158971,87.09,87.039,7.86980303]
[1773268463283,2.46158971,87.1,87.053,7.86980303]
[1773268463688,4.98674856,87.099,87.053,7.86980303]
[1773268463883,4.98674856,87.089,87.036,7.86980303]
[1773268464089,4.98674856,87.079,87.036,7.86980303]
[1773268464881,4.97835084,87.069,87.026,7.86980303]
[1773268466283,4.98063901,87.049,87.012,3.29575964]
[1773268466482,4.98063901,87.049,86.98,7.86980303]
[1773268466483,4.98063901,87.039,86.98,7.86980303]
[1773268466685,4.97182376,87.038,86.981,7.86980303]
[1773268467790,4.97182376,87.038,86.984,7.87072993]
[1773268467995,4.97298005,87.049,86.991,7.86980303]
[1773268468691,10.338,87.048,86.997,10.344]
[1773268468892,5.17478173,87.047,86.997,10.344]
[1773268469191,5.17478173,87.047,86.998,7.86980303]
[1773268470288,5.17478173,87.047,86.99,2.46158971]
[1773268470289,5.17478173,87.047,87.0,7.86980303]
[1773268470493,10.338,87.045,87.0,7.86980303]
[1773268470895,2.46158971,87.04,87.0,7.86980303]
[1773268471895,5.24868671,87.044,87.0,7.86980303]
[1773268473198,5.24614931,87.029,86.985,7.86980303]
[1773268473396,2.46158971,87.04,86.985,7.86980303]
[1773268473591,2.46158971,87.04,86.988,7.86980303]
[1773268473798,5.2473162,87.041,86.988,7.86980303]
[1773268474297,5.2473162,87.041,87.001,18.21380303]
[1773268474500,5.2473162,87.041,87.001,7.86980303]
[1773268475198,7.66337715,87.03,86.984,0.0009269]
[1773268475395,5.20178744,87.03,86.984,0.0009269]
[1773268475899,5.20287497,87.04,86.984,0.0009269]
[1773268476100,5.20287497,87.04,86.991,7.86980303]
[1773268476500,5.20287497,87.04,87.003,10.343]
[1773268476703,2.46158971,87.05,87.003,18.21280303]
[1773268478106,10.338,87.046,87.003,18.21280303]
[1773268478508,5.19540942,87.054,87.006,7.86980303]
[1773268480318,10.338,87.053,87.009,7.86980303]
[1773268483113,15.29985746,87.053,87.009,7.86980303]
[1773268483315,4.96185746,87.052,87.009,7.86980303]
[1773268483515,4.96185746,87.052,87.01,10.343]
[1773268483712,4.96185746,87.052,87.011,7.60091156]
[1773268484117,4.96185746,87.052,87.013,7.60091156]
[1773268485417,4.96185746,87.052,87.016,10.342]
[1773268487412,10.338,87.049,87.013,7.60091156]
[1773268487618,4.96185746,87.052,87.013,7.60091156]
[1773268487815,2.46337467,87.06,87.013,7.60091156]
[1773268488015,4.94585674,87.064,86.984,0.0009269]
[1773268488016,4.94585674,87.064,87.017,7.60091156]
[1773268489419,4.94585674,87.064,87.023,7.60091156]
[1773268490321,4.94585674,87.064,87.027,10.341]
[1773268490517,4.94585674,87.064,87.027,17.79465398]
[1773268490720,2.46337467,87.07,87.028,7.45365398]
[1773268491020,2.46337467,87.07,87.031,7.45365398]
[1773268491324,5.05485188,87.079,87.031,7.45365398]
[1773268492419,5.05485188,87.079,87.041,10.339]
[1773268492617,5.05485188,87.079,87.042,7.45365398]
[1773268492919,10.334,87.087,87.042,7.45365398]
[1773268493321,12.79737467,87.08,87.042,7.45365398]
[1773268495621,10.334,87.08,87.042,7.45365398]
[1773268496826,12.79737467,87.08,87.042,7.45365398]
[1773268498225,2.46337467,87.07,87.011,7.45365398]
[1773268498623,7.61065677,87.07,87.011,7.45365398]
[1773268499423,10.336,87.069,87.026,10.341]
[1773268499623,10.336,87.069,86.984,0.0009269]
[1773268499624,2.46337467,87.04,86.984,0.0009269]
[1773268499926,5.25619034,87.059,87.001,7.45365398]
[1773268500329,2.46337467,87.07,87.011,7.45365398]
[1773268500524,5.25689901,87.069,87.011,7.45365398]
[1773268500720,5.25689901,87.069,87.025,7.45365398]
[1773268502826,10.336,87.068,87.025,7.45365398]
[1773268503019,5.30929709,87.059,87.012,7.45365398]
[1773268503224,2.46337467,87.04,86.993,7.45365398]
[1773268503419,5.30929709,87.049,87.005,7.45365398]
[1773268503625,2.46337467,87.05,87.005,7.45365398]
[1773268504528,2.46337467,87.05,87.007,7.45365398]
[1773268505923,2.46337467,87.06,87.015,7.45365398]
[1773268506428,5.23357225,87.062,87.015,7.45365398]
[1773268507324,10.336,87.065,87.018,7.45365398]
[1773268507528,2.46337467,87.07,87.018,7.45365398]
[1773268507928,10.335,87.075,87.023,7.45365398]
[1773268508732,10.336,87.068,87.023,7.45365398]
[1773268509933,8.8274287,87.075,87.025,7.45365398]
[1773268510128,8.8274287,87.074,87.025,7.45365398]
[1773268510430,8.8274287,87.075,87.025,7.45365398]
[1773268510631,2.46337467,87.07,87.025,7.45365398]
[1773268511331,2.46337467,87.07,87.026,10.341]
[1773268511533,2.46337467,87.07,87.027,7.45365398]
[1773268511733,5.11060287,87.076,87.027,7.45365398]
[1773268512132,5.11060287,87.076,87.029,7.45365398]
[1773268513335,5.11060287,87.076,87.031,7.45365398]
[1773268514132,10.335,87.077,87.031,7.45365398]
[1773268515339,10.335,87.077,87.034,7.45365398]
[1773268516433,10.335,87.077,87.036,7.45365398]
[1773268519531,10.335,87.077,87.039,7.45365398]
[1773268520435,24.33084432,87.085,87.048,8.06101406]
[1773268520738,15.57560133,87.085,87.048,8.06101406]
[1773268521637,24.33084432,87.085,87.048,8.06101406]
[1773268521836,15.57560133,87.085,87.048,8.06101406]
[1773268522738,5.24160133,87.085,87.048,8.06101406]
[1773268524034,5.27756831,87.083,87.038,8.06101406]
[1773268524636,10.335,87.077,87.039,10.339]
[1773268525545,5.27890744,87.079,87.038,8.06101406]
[1773268525733,5.27890744,87.079,87.021,8.06101406]
[1773268526042,10.336,87.067,87.03,10.34]
[1773268526343,5.27890744,87.079,87.03,10.34]
[1773268526541,10.336,87.067,87.03,10.34]
[1773268526742,5.27946219,87.066,87.023,8.06101406]
[1773268527249,10.336,87.065,87.023,8.06101406]
[1773268527539,15.62646007,87.065,87.023,8.06101406]
[1773268527745,5.29046007,87.064,87.025,10.341]
[1773268528137,10.337,87.062,87.023,8.06101406]
[1773268528345,5.29046007,87.061,87.023,8.06101406]
[1773268528642,10.339,87.037,87.004,8.06101406]
[1773268528943,2.46337467,87.04,86.984,8.06194096]
[1773268529246,2.46337467,87.05,86.996,8.06101406]
[1773268529436,10.339,87.039,86.996,8.06101406]
[1773268529641,5.06245539,87.029,86.984,0.0009269]
[1773268531141,5.06245539,87.029,86.985,18.40601406]
[1773268532546,5.06245539,87.029,86.986,8.06101406]
[1773268535144,5.06245539,87.029,86.993,8.06101406]
[1773268535354,5.01798297,87.039,86.993,8.06101406]
[1773268535940,15.34839972,87.052,87.003,8.06101406]
[1773268536146,5.01039972,87.051,87.003,8.06101406]
[1773268536349,5.01039972,87.039,86.99,2.46337467]
[1773268536651,5.01039972,87.039,86.999,8.06101406]
[1773268538444,2.46337467,87.05,87.003,8.06101406]
[1773268538854,4.99794777,87.051,87.003,8.06101406]
[1773268539355,4.99846813,87.049,86.991,8.06101406]
[1773268540451,10.339,87.044,87.0,8.06101406]
[1773268540752,15.36502034,87.044,87.0,8.06101406]
[1773268541961,2.46337467,87.04,87.0,8.06101406]
[1773268542251,5.00991607,87.039,87.0,8.06101406]
[1773268543256,2.46337467,87.05,87.004,8.11629677]
[1773268543460,5.01074916,87.049,87.004,8.11629677]
[1773268544360,10.338,87.048,87.007,8.11629677]
[1773268544551,5.1572267,87.059,87.007,8.11629677]
[1773268544852,2.46337467,87.04,86.984,0.0009269]
[1773268545559,2.46442959,87.04,86.998,8.11629677]
[1773268546757,5.07709972,87.047,86.998,8.11629677]
[1773268547460,10.338,87.046,86.999,8.11629677]
[1773268548461,4.9990855,87.045,87.0,18.46029677]